Cogmind - Beta 11.1 *** ADVENTURER MODE // 2022.05.19 @ 21:11:47 Player: lcbb_tuk Result: Destroyed by as-50883 with Assembled Blade Performance ------------- Evolutions (1) 500 Regions Visited (3) 600 Robots Destroyed (16) 80 Value Destroyed (375) 375 Prototype IDs (0) 0 Alien Tech Used (0) 0 Bonus (0) 0 TOTAL SCORE: 1555 Bonus ------- None Cogmind --------- Core Integrity 0/400 Matter 294/300 Energy 100/100 System Corruption 0% Temperature Cool (20) Movement Core (5350) Ox106 Location -9/Mines Parts ------- > --- POWER (1) -------- (None) > --- PROPULSION (2) --- (None) > --- UTILITY (4) ------ Huge Storage Unit Huge Storage Unit Huge Storage Unit Huge Storage Unit > --- WEAPON (2) ------- Light Assault Rifle > --- INVENTORY (25) --- Small Storage Unit Large Storage Unit Large Storage Unit High-powered Tractor Beam Peak State ------------ > --- POWER ------------ Light Ion Engine > --- PROPULSION ------- Light Treads Light Treads > --- UTILITY ---------- Small Storage Unit Large Storage Unit Large Storage Unit High-powered Tractor Beam > --- WEAPON ----------- Medium Laser Small Laser > --- INVENTORY -------- Light Ion Engine Light Assault Rifle Light Assault Rifle [Rating: 10] Favorites ----------- Power Light Ion Engine Engine Light Ion Engine Propulsion Light Treads Treads Light Treads Utility Huge Storage Unit Device High-powered Tractor Beam Storage Huge Storage Unit Weapon Light Assault Rifle Energy Gun Medium Laser Ballistic Gun Light Assault Rifle Build | -11 -10 -9 -9 ------- Run | Scr Mat Mat Min Slots Evolved 2 | . . 2 . Power . | . . . . Propulsion . | . . . . Utility 2 | . . 2 . Weapon . | . . . . Parts Attached 19 | 6 1 12 . Power 3 | 1 1 1 . Engine 3 | 1 1 1 . Core . | . . . . Reactor . | . . . . Propulsion 2 | 2 . . . Treads 2 | 2 . . . Leg . | . . . . Wheel . | . . . . Hover . | . . . . Flight . | . . . . Utility 8 | 1 . 7 . Device 1 | . . 1 . Storage 7 | 1 . 6 . Processor . | . . . . Hackware . | . . . . Protection . | . . . . Artifact . | . . . . Weapon 6 | 2 . 4 . Energy Gun 4 | 2 . 2 . Energy Cannon . | . . . . Ballistic Gun 2 | . . 2 . Ballistic Cannon . | . . . . Launcher . | . . . . Special Weapon . | . . . . Impact Weapon . | . . . . Slashing Weapon . | . . . . Piercing Weapon . | . . . . Special Melee Weapon . | . . . . Unidentified Prototypes . | . . . . Parts Lost 8 | . . 8 . Power 2 | . . 2 . Propulsion 2 | . . 2 . Utility . | . . . . Weapon 4 | . . 4 . Highest Loss Streak 3 | . . 3 . To Critical Strikes . | . . . . Average Slot Usage (%) 59 | . 85 77 55 Engine 1 | . 14 7 . Treads 2 | . 28 9 . Storage 42 | . 14 40 44 Energy Gun 2 | . 28 9 . Ballistic Gun 10 | . . 8 11 Naked Turns . | . . . . Heaviest Build 326 | 13 13 326 321 Greatest Support 40 | 40 40 40 3 Greatest Overweight (x) 108 | 4 . 108 106 Average Overweight (x) 38 | . . 12 106 Largest Inventory Capacity 25 | 8 8 25 25 Average Capacity 24 | 7 8 23 25 Most Carried 7 | 3 5 7 4 Average Carried 4 | 1 3 4 4 Final Capacity 25 | 8 8 25 25 Final Carried 4 | 3 3 4 4 Class Distribution -------------------- 100% | Mutant Dominant Class ---------------- Mutant | -10/Materials Mutant | -9/Materials Mutant | -9/Mines Resources | -11 -10 -9 -9 ----------- Run | Scr Mat Mat Min Matter Collected 390 | 220 28 142 . Remotely 34 | . . 34 . Salvage Created 555 | . 47 508 . Parts 36 | . 7 29 . Haulers Intercepted 2 | . . 2 . Recyclers Shooed . | . . . . Parts Field Recycled . | . . . . Retrieved Matter . | . . . . Parts Self-Destructed . | . . . . Prevented . | . . . . Kills | -11 -10 -9 -9 ------- Run | Scr Mat Mat Min Combat Hostiles Destroyed 13 | . 3 10 . Guns 13 | . 3 10 . Classes Destroyed 5 | . 1 4 . Hauler 2 | . . 2 . Watcher 1 | . . 1 . Swarmer 6 | . 3 3 . Grunt 3 | . . 3 . Sentry 4 | . . 4 . Best Kill Streak 3 | . 3 2 . Combat Bots Only 3 | . 3 2 . Max Kills in Single Turn 1 | . 1 1 . Gunslinging . | . . . . Exploded . | . . . . Melee . | . . . . Uniques/NPCs Destroyed . | . . . . Combat | -11 -10 -9 -9 -------- Run | Scr Mat Mat Min Damage Taken 1443 | . 85 1209 149 Core 406 | . 6 312 88 Absorbed by Shields . | . . . . Core Remaining (%) 98 | 100 97 . . Volleys Fired 64 | . 5 59 . Largest 2 | . 2 2 . Hottest 90 | . 90 90 . Shots Fired 101 | . 6 95 . Gun 101 | . 6 95 . Cannon . | . . . . Launcher . | . . . . Special . | . . . . Kinetic 32 | . . 32 . Thermal 69 | . 6 63 . Explosive . | . . . . Electromagnetic . | . . . . Robot Hit Streak 16 | . 5 16 . Robot Miss Streak 2 | . . 2 . Penetration Max . | . . . . Secondary Targets 1 | . . 1 . Max Gunslinging Chain 1 | . . 1 . Shots Hit Robots 82 | . 5 77 . Core Hits 28 | . 3 25 . Critical Kills 1 | . . 1 . Critical Parts Destroyed . | . . . . Critical Strikes 5 | . . 5 . Burn 4 | . . 4 . Destroy 1 | . . 1 . Melee Attacks . | . . . . Impact . | . . . . Slashing . | . . . . Piercing . | . . . . Sneak Attacks . | . . . . Combat Hostiles . | . . . . Follow-up Attacks . | . . . . Damage Inflicted 891 | . 61 830 . Guns 891 | . 61 830 . Cannons . | . . . . Explosions . | . . . . Melee . | . . . . Ramming . | . . . . Kinetic 226 | . . 226 . Thermal 665 | . 61 604 . Explosive . | . . . . Electromagnetic . | . . . . Impact . | . . . . Slashing . | . . . . Piercing . | . . . . Highest Corruption . | . . . . Average Corruption . | . . . . Corruption Purged . | . . . . Corruption Blocked . | . . . . Overload Shots . | . . . . Overflow Damage . | . . . . Projectiles . | . . . . Explosions . | . . . . Melee . | . . . . Knockbacks . | . . . . Impact . | . . . . Kinetic . | . . . . Secondary . | . . . . Self-Inflicted Damage . | . . . . Shots . | . . . . Rammed . | . . . . Targets Rammed . | . . . . Kicked . | . . . . Crushed . | . . . . Highest Temperature 219 | . 40 219 . Average Temperature 66 | . 19 71 . Received Heat Transfer 510 | . . 450 60 Siege Activations . | . . . . Robots Corrupted . | . . . . Combat Hostiles . | . . . . Parts Fried . | . . . . Impact Corruptions . | . . . . Robots Melted . | . . . . Combat Hostiles . | . . . . Parts Melted 7 | . 1 6 . Heat Transferred 2091 | . 185 1906 . Parts Sabotaged . | . . . . Parts Stolen . | . . . . Parts Stripped . | . . . . Power Chain Reactions . | . . . . Missiles Intercepted . | . . . . Alert | -11 -10 -9 -9 ------- Run | Scr Mat Mat Min Peak Influence 192 | . 70 192 4 Initial 25 | . . 25 4 Average 7 | . 28 34 . Maximum Alert Level . | . . . . Low Security (%) 100 | 100 100 100 100 Level 1 . | . . . . Level 2 . | . . . . Level 3 . | . . . . Level 4 . | . . . . Level 5 . | . . . . High Security . | . . . . Max Security . | . . . . Squads Dispatched . | . . . . Investigation . | . . . . Extermination . | . . . . Reinforcement . | . . . . Assault . | . . . . Garrison . | . . . . Intercept . | . . . . Searches Triggered . | . . . . Construction Impeded . | . . . . Haulers Reinforced . | . . . . Active Scanning Responses . | . . . . Cargo Convoy Interrupts . | . . . . Stealth | -11 -10 -9 -9 --------- Run | Scr Mat Mat Min Distress Signals 4 | . . 4 . Communications Jammed . | . . . . Distress Signals . | . . . . Times Spotted 29 | . 3 23 3 Peak Tracking Total 6 | . 3 6 3 Tactical Retreats . | . . . . Traps | -11 -10 -9 -9 ------- Run | Scr Mat Mat Min Traps Triggered . | . . . . Indirectly . | . . . . Trap Hack Attempts . | . . . . Triggered . | . . . . Disarmed . | . . . . Reprogrammed . | . . . . Reused . | . . . . Traps Extracted . | . . . . Installed . | . . . . Triggered . | . . . . Machines | -11 -10 -9 -9 ---------- Run | Scr Mat Mat Min Machines Disabled . | . . . . Max in Single Turn . | . . . . Machines Sabotaged . | . . . . Garrisons Compromised . | . . . . Overloaded Fab Kills . | . . . . Hacking | -11 -10 -9 -9 --------- Run | Scr Mat Mat Min Machines Accessed 1 | . . 1 . Terminals 1 | . . 1 . Fabricators . | . . . . Repair Stations . | . . . . Recycling Units . | . . . . Scanalyzers . | . . . . Garrison Access . | . . . . Total Hacks 1 | . . 1 . Successful . | . . . . Failed 1 | . . 1 . Catastrophic 1 | . . 1 . Database Lockouts . | . . . . Manual 1 | . . 1 . Terminals 1 | . . 1 . Fabricators . | . . . . Repair Stations . | . . . . Recycling Units . | . . . . Scanalyzers . | . . . . Garrison Access . | . . . . Terminal Hacks . | . . . . Fabricator Hacks . | . . . . Repair Station Hacks . | . . . . Recycling Unit Hacks . | . . . . Scanalyzer . | . . . . Garrison Access Hacks . | . . . . Unauthorized Hacks . | . . . . Terminals . | . . . . Fabricators . | . . . . Repair Stations . | . . . . Recycling Units . | . . . . Scanalyzers . | . . . . Garrison Access . | . . . . Data Cores Recovered . | . . . . Used . | . . . . Hacking Detections 1 | . . 1 . Full Trace Events . | . . . . Feedback Events . | . . . . Feedback Blocked . | . . . . Robot Schematics Acquired . | . . . . Robots Built . | . . . . Authchips . | . . . . Time . | . . . . Total Robot Build Rating . | . . . . Part Schematics Acquired . | . . . . Parts Built . | . . . . Authchips . | . . . . Time . | . . . . Total Part Build Rating . | . . . . Parts Repaired . | . . . . Time . | . . . . Parts Recycled . | . . . . Recycled Matter . | . . . . Retrieved Matter . | . . . . Retrieved Components . | . . . . Parts Scanalyzed . | . . . . Part Schematics Acquired . | . . . . Parts Damaged . | . . . . Bothacking | -11 -10 -9 -9 ------------ Run | Scr Mat Mat Min Used RIF Installer . | . . . . Robots Hacked . | . . . . Non-combat . | . . . . Combat . | . . . . Robot Hacks Applied . | . . . . Relay Couplers Released . | . . . . Fabnet Peak Effective % . | . . . . Robots Rewired . | . . . . Allies Hacked . | . . . . Hacks Repelled . | . . . . Allies | -11 -10 -9 -9 -------- Run | Scr Mat Mat Min Total Allies . | . . . . Largest Group . | . . . . Highest-Rated Group . | . . . . Highest-Rated Ally . | . . . . Total Orders . | . . . . Ally Attacks . | . . . . Total Damage . | . . . . Kills . | . . . . Allies Corrupted . | . . . . Allies Melted . | . . . . Intel | -11 -10 -9 -9 ------- Run | Scr Mat Mat Min Robot Analysis Total . | . . . . Derelict Logs Recovered 1 | . . . 1 Drone Launches . | . . . . Drone Recoveries . | . . . . Exploration | -11 -10 -9 -9 ------------- Run | Scr Mat Mat Min Turns Passed 11685 | 89 138 2280 9178 Spaces Moved 557 | 50 77 258 172 Core 206 | 10 . 24 172 Treads 351 | 40 77 234 . Legs . | . . . . Wheels . | . . . . Hover . | . . . . Flight . | . . . . Fastest Speed 50 | 50 160 160 5350 Average Speed 2076 | 156 160 837 5350 Slowest Speed 5450 | 250 160 5450 5350 Overloaded Moves . | . . . . Propulsion Burnouts . | . . . . Robots Hopped . | . . . . Cave-ins Triggered . | . . . . Exploration Rate (%) 22 | 4 18 31 38 Regions Visited 3 Branch Regions 1 Pre-discovered Areas 1 | . . . 1 Known Exits Taken . | . . . . Unknown Exits Taken 3 | 1 1 1 . Scrap Searched . | . . . . Spaces Dug . | . . . . Terrain Destroyed . | . . . . Melee . | . . . . Projectile . | . . . . AOE . | . . . . Terrain Rammed . | . . . . Walls Destroyed . | . . . . Machines Disabled . | . . . . Actions | -11 -10 -9 -9 --------- Run | Scr Mat Mat Min Total 657 | 58 86 338 175 Wait 12 | . 1 8 3 Move 554 | 49 76 257 172 Hop . | . . . . Pick Up 4 | 3 1 . . Fast Attach 11 | 6 . 5 . Attach 4 | . . 4 . Detach 2 | . . 2 . Swap 4 | . 1 3 . Drop 2 | . 2 . . Fire 64 | . 5 59 . Melee . | . . . . Ram . | . . . . Kick . | . . . . Crush . | . . . . Escape Stasis . | . . . . Rewire . | . . . . Trap . | . . . . Miscellaneous . | . . . . Route ------- -11/Scrapyard -10/Materials -9/Materials (discovered 2 exits: [*Mat] / [*Min]) -9/Mines History --------- Turn | Location | Event 35 | -11/Scrapyard | Discovered new exit (range 15) 90 | -11/Scrapyard | Entered Materials 190 | -10/Materials | Discovered new exit (range 16) 228 | -10/Materials | Entered another Materials area 228 | -9/Materials | Evolved 2 slots: Utility x2 308 | -9/Materials | Build established: Mutant 545 | -9/Materials | Discovered new exit (range 15) 1279 | -9/Materials | Lost 3 parts (1p2n) 1676 | -9/Materials | Core integrity fell below 50% 2080 | -9/Materials | Discovered new exit (range 9) 2508 | -9/Materials | Entered Mines 3311 | -9/Mines | Learned location of Zion (-6) 11661 | -9/Mines | Assembled infested the area 11678 | -9/Mines | Core integrity fell below 20% 11686 | -9/Mines | Destroyed by as-50883 with Assembled Blade Last Messages --------------- 02275_ K-01 Serf cleans the Machine. 02283_ K-01 Serf collects debris. 02289_ K-01 Serf cleans the Machine. 02442_ W-16 Scout distress signal alerts nearby ally. LOCATION=UNKNOWN GOAL=ESCAPE Something is scanning the area. 02519_ K-01 Serf collects debris. 02547_ K-01 Serf cleans the Laser Drill. 02566_ K-01 Serf collects debris. 02655_ K-01 Serf cleans the Core Extractor. 02690_ K-01 Serf cleans the Laser Drill. 03311_ Acquired derelict log, extracted data. World map updated: -6/Zion. 03939_ K-01 Serf cleans the Core Extractor. 09552_ K-01 Serf cleans the Laser Drill. 10041_ K-01 Serf cleans the Core Extractor. 11165_ K-01 Serf cleans the Laser Drill. 11661_ ALERT: Infestation in the mines, dispatching Demolisher response squad. Map ----- +----------------------------------------------------+ | ?????????????????????????????????????????????????? | | ?????????????????????????????????????????????????? | | ?????????????????????????????????????????????????? | | ?????????????????????????????????????????????????? | | ?????????????????????????????????????????????????? | | ?????????????????????????????????????????????????? | | ?????????????????????????????????????????????????? | | ?????????????????????????????????????????????????? | | ?????????????????????????????????????????????????? | | ?????????????????????????????????????????????????? | | ???????????????????????? ??????????????????????? | | ???????????????????????? ??????????????????????? | | ???????????????????????? ??????????????????????? | | ???????????????????????? #?????????????????????? | | ???????????????????????? #?????????????????????? | | ?????????????? #??#? #?????????????????????? | | ????????????? ## ?? ##????????????????????? | | ?????????????# ##???????????????????? | | ??????????????# #???????????????????? | | ??????????????# ##??????????????????? | | ?????????????## """ ##?????????????????? | | ???????????### """ ##????????????????? | | ???????????# """ #???? ?????????? | | ?????????? ### ????????? | | ????????????? a ????????? | | ???????????????????# @a ????????? | | ???????????????????## a #####???????????????? | | ????????????????????## ##???????????????????? | | ????????????????????## #????????????????????? | | ??????????????????### ##????????????????????? | | ?????????????????## ##?????????????????????? | | ????????????????## ##??????????????????????? | | ????????????????# ###???????????????????????? | | ????????????????# ###?????????????????????????? | | ????????????????## ##???????????????????????????? | | ?????????????????# ##????????????????????????????? | | ?????????????????# #?????????????????????????????? | | ?????????????????# #?????????????????????????????? | | ?????????????????# #??#####??????????????????????? | | ?????????????????# #?? ??????????????????????? | | ?????????????????# #???"""???????????????????????? | | ?????????????????# #???"""???????????????????????? | | ?????????????????# #???"""???????????????????????? | | ????????????###### #??? ???????????????????????? | | ????????????# #???# #???????????????????????? | | ????????????# #### #???# #???????????????????????? | | ?????????????????# ##### #???????????????????????? | | ?????????????????# #???????????????????????? | | ?????????????????####### #???????????????????????? | | ????????????????####### ##??????????????????????? | +----------------------------------------------------+ Best States ------------- Heat Dissipation 28 Energy Generation 10 Energy Capacity 250 Matter Stores 300 Matter Capacity 300 Sight Range 16 Terrain Scan Density 10 Resistance: KI 20 Resistance: TH 20 Resistance: EX 20 Resistance: EM 20 Resistance: I 20 Resistance: S 20 Resistance: P 20 Evasion (%) 40 Recoil Reduction 2 Offensive Hacking 10 Item Schematics ----------------- None Robot Schematics ------------------ None Fabricated ------------ Nothing Alien Tech Used ----------------- None Achievements -------------- Tank Challenges ------------ None Game ------ Seed ArmoredGravitonCapacitor Manual? 0 Play Time 00:09:52 Cumulative 50.2 hours Start 2022.05.19 @ 21:01:39 End 2022.05.19 @ 21:11:47 Sessions 1 Manual Loads 0 Difficulty Adventurer Special Mode None Game No. 76 Rogue 0 Adventurer 76 Explorer 0 Win Type - Total 0 Types 0/0/0/0/0/0/0/0/0 Lore% 28 Gallery% 39 Achievement% 32 Wizard Run 0 Options --------- ASCII 0 Keyboard 1 Movement Numpad Keybinds 0 Fullscreen 1 Font 16/SmallcapsGlow Map View 75x55 Tactical HUD 1 Map Filters NONE Filters NONE Steam 1 RUN: ec1b2e51-40e7-4f0a-b4bd-04baf64a54c1